Workbook

Sheet Лист1
A1: Сумма | B1: Сумма НДС | C1: Всего | D1: Сумма НДС2 | E1: Разница | G1: 0.18 | K1: 0.18
A2: 1 | B2: 2 | C2: 3 | D2: 4 | E2: 5 | G2: 7 | H2: 8 | I2: 9 | K2: 11 | L2: 12 | M2: 13
A3: 20855.75 | B3: 3754.03 | C3: 24609.78 | D3: 3754.04 | E3: -0.01 | G3: =A3*0.18 -> 3754.035 | H3: =B3-D3 -> -0.01 | I3: =D3-G3 -> 0.005 | K3: =A3*18% -> 3754.035 | L3: =B3-K3 -> -0.005 | M3: =D3-K3 -> 0.005
A4: 41480.75 | B4: 7466.53 | C4: 48947.28 | D4: 7466.54 | E4: -0.01 | G4: =A4*0.18 -> 7466.535 | H4: =B4-D4 -> -0.01 | I4: =D4-G4 -> 0.005 | K4: =A4*18% -> 7466.535 | L4: =B4-K4 -> -0.005 | M4: =D4-K4 -> 0.005
A5: 581029.75 | B5: 104585.37 | C5: 685615.12 | D5: 104585.36 | E5: 0.01 | G5: =A5*0.18 -> 104585.355 | H5: =B5-D5 -> 0.009999999995 | I5: =D5-G5 -> 0.005000000005 | K5: =A5*18% -> 104585.355 | L5: =B5-K5 -> 0.015 | M5: =D5-K5 -> 0.005000000005
A6: 13006.25 | B6: 2341.12 | C6: 15347.37 | D6: 2341.13 | E6: -0.01 | G6: =A6*0.18 -> 2341.125 | H6: =B6-D6 -> -0.01 | I6: =D6-G6 -> 0.005 | K6: =A6*18% -> 2341.125 | L6: =B6-K6 -> -0.005 | M6: =D6-K6 -> 0.005
A7: 8272.25 | B7: 1489 | C7: 9761.25 | D7: 1489.01 | E7: -0.01 | G7: =A7*0.18 -> 1489.005 | H7: =B7-D7 -> -0.01 | I7: =D7-G7 -> 0.005 | K7: =A7*18% -> 1489.005 | L7: =B7-K7 -> -0.005 | M7: =D7-K7 -> 0.005
A8: 10667.75 | B8: 1920.19 | C8: 12587.94 | D8: 1920.2 | E8: -0.01 | G8: =A8*0.18 -> 1920.195 | H8: =B8-D8 -> -0.01 | I8: =D8-G8 -> 0.005 | K8: =A8*18% -> 1920.195 | L8: =B8-K8 -> -0.005 | M8: =D8-K8 -> 0.005

Sheet Лист2

Sheet Лист3
